bitfinex-derivatives/quotes_SOLF0:USTF0_20250523
["timestamp","ask_amount","ask_price","bid_price","bid_amount"]
[1748039820884,8.239e-05,176.5,176.48,121.59685]
[1748039821287,8.239e-05,176.5,176.48,0.03685]
[1748039821491,6.497207,176.49,176.41,10.68318655]
[1748039821789,5.6672,176.42,176.41,10.68318655]
[1748039822390,128.06954063,176.44,176.32,19.18245043]
[1748039822694,0.04073876,176.4,176.32,19.18245043]
[1748039822992,0.04073876,176.4,176.37,5.6687]
[1748039823794,0.04073876,176.4,176.32,19.18245043]
[1748039825096,0.04073876,176.4,176.39,5.6682]
[1748039825493,0.04073876,176.4,176.36,121.6]
[1748039825692,0.04073876,176.4,176.38,5.6682]
[1748039826097,0.04073876,176.4,176.36,121.6]
[1748039826389,0.04073876,176.4,176.39,5.6682]
[1748039826591,535.0,176.6,176.37,107.62]
[1748039826798,6.50808459,176.52,176.37,107.62]
[1748039826992,125.5563,176.57,176.39,6.50808459]
[1748039827193,132.06438459,176.57,176.42,6.50808459]
[1748039827396,121.62,176.57,176.43,1.9109]
[1748039827598,0.03688646,176.52,176.48,0.03938756]
[1748039827801,0.03688646,176.52,176.49,121.62]
[1748039828595,0.03688646,176.52,176.48,121.65938756]
[1748039828795,0.03688646,176.52,176.51,5.6643]
[1748039829701,0.03688646,176.52,176.5,5.6643]
[1748039830000,0.03688646,176.52,176.48,121.65938756]
[1748039830197,121.38,176.61,176.49,1.9924]
[1748039830497,121.38,176.65,176.49,1.9924]
[1748039830697,5.6607,176.62,176.57,5.662]
[1748039831203,0.03908967,176.61,176.58,0.03791918]
[1748039832703,10.59062596,176.59,176.45,121.38]
[1748039833004,10.59062596,176.59,176.49,5.6648]
[1748039833303,10.59062596,176.59,176.45,121.38]
[1748039833495,0.04099916,176.54,176.5,0.04294492]
[1748039833898,5.6637,176.53,176.5,0.04294492]
[1748039834700,5.70439916,176.54,176.5,0.04294492]
[1748039834901,0.04099916,176.54,176.5,0.04294492]
[1748039835101,5.6641,176.52,176.5,0.04294492]
[1748039835706,5.6637,176.53,176.5,0.04294492]
[1748039836010,0.04099916,176.54,176.5,0.04294492]
[1748039836906,5.6642,176.52,176.5,0.04294492]
[1748039837209,0.04099916,176.54,176.5,0.04294492]
[1748039837402,5.6643,176.51,176.5,0.04294492]
[1748039838106,0.04099916,176.54,176.5,0.04294492]
[1748039839210,5.6637,176.53,176.5,0.04294492]
[1748039839397,0.04099916,176.54,176.5,0.04294492]
[1748039840710,5.70439916,176.54,176.5,0.04294492]
[1748039841110,0.04099916,176.54,176.5,0.04294492]
[1748039841412,5.6637,176.53,176.5,0.04294492]
[1748039841708,0.04099916,176.54,176.5,0.04294492]
[1748039841905,5.6643,176.51,176.5,0.04294492]
[1748039855222,5.6643,176.51,176.44,1.8525]
[1748039855430,5.6662,176.45,176.4,123.3628]
[1748039856026,121.4,176.52,176.4,123.3628]
[1748039856235,121.4,176.52,176.41,1.8675]
[1748039856531,0.03593877,176.48,176.44,5.6663]
[1748039856728,5.6657,176.47,176.44,5.6663]
[1748039857133,5.70123877,176.48,176.44,5.6663]
[1748039857834,0.03593877,176.48,176.45,5.6661]
[1748039859434,5.70123877,176.48,176.45,5.6661]
[1748039861129,0.03593877,176.48,176.41,1.8675]
[1748039861831,0.03593877,176.48,176.46,5.6657]
[1748039862337,0.03593877,176.48,176.41,1.8675]
[1748039863038,0.03593877,176.48,176.46,5.6657]
[1748039868940,0.03593877,176.48,176.47,5.6656]
[1748039869241,0.03593877,176.48,176.44,121.32]
[1748039869536,0.03593877,176.48,176.46,5.6658]
[1748039869838,0.03593877,176.48,176.44,121.32]
[1748039870030,0.03593877,176.48,176.45,5.6661]
[1748039870741,0.03593877,176.48,176.44,121.32]
[1748039870932,0.03593877,176.48,176.41,1.8675]
[1748039871131,6.54206356,176.48,176.4,1.9628]
[1748039871331,6.54206356,176.48,176.39,5.6681]
[1748039871730,6.54206356,176.48,176.38,121.32]
[1748039872353,5.6681,176.4,176.38,121.32]
[1748039872529,0.03672667,176.41,176.38,121.32]
[1748039872837,0.04255674,176.41,176.36,2.0116]
[1748039873036,5.6684,176.39,176.36,2.0116]
[1748039873232,0.04255674,176.41,176.36,2.0116]
[1748039873440,0.04255674,176.41,176.4,5.6678]
[1748039874241,121.32,176.45,176.42,5.6671]
[1748039874534,5.666,176.46,176.42,5.6671]
[1748039874939,128.22456514,176.49,176.38,121.32]
[1748039875234,0.04068356,176.45,176.42,0.0385089]
[1748039875534,0.04068356,176.45,176.42,5.7056089]
[1748039875928,5.70688356,176.45,176.42,5.7056089]
[1748039876936,5.70688356,176.45,176.42,0.0385089]
[1748039877646,5.6666,176.44,176.42,0.0385089]
[1748039877837,0.04068356,176.45,176.42,5.7055089]
[1748039878646,0.04068356,176.45,176.43,5.6668]
[1748039879638,0.04068356,176.45,176.42,0.0385089]
[1748039880344,5.6668,176.44,176.42,0.0385089]
[1748039880843,5.70698356,176.45,176.42,0.0385089]
[1748039881445,5.6665,176.44,176.42,0.0385089]
[1748039881649,0.04068356,176.45,176.42,0.0385089]
[1748039882647,0.04068356,176.45,176.42,5.7054089]
[1748039883245,0.04068356,176.45,176.43,5.6668]
[1748039884047,0.04068356,176.45,176.44,5.6665]
[1748039885144,13.4104198,176.51,176.42,3.9946089]
[1748039885145,5.6647,176.5,176.42,3.9946089]
[1748039885344,6.90456514,176.51,176.43,1.9891]
[1748039885544,5.665,176.49,176.45,5.6659]
[1748039885939,0.04115638,176.49,176.45,5.70640941]
[1748039886145,5.6655,176.48,176.45,0.04050941]
[1748039888348,0.04115638,176.49,176.45,0.04050941]
[1748039888846,5.6659,176.46,176.45,0.04050941]
[1748039889749,6.50698483,176.47,176.38,123.3393]
[1748039890150,6.50698483,176.47,176.38,129.0077]
[1748039890540,0.03675718,176.44,176.41,0.03864699]
[1748039891553,5.6672,176.42,176.41,0.03864699]
[1748039897657,5.6672,176.42,176.41,4.699e-05]
[1748039897869,6.54374201,176.44,176.29,5.28384953]
[1748039898069,6.50698483,176.4,176.3,121.18]
[1748039898367,5.6697,176.35,176.31,5.6705]
[1748039898752,5.71192738,176.35,176.31,5.6705]
[1748039898955,5.6698,176.34,176.3,126.8509]
[1748039899155,121.22222738,176.35,176.29,5.28384953]
[1748039899354,6.50698483,176.34,176.29,5.28384953]
[1748039899764,5.6704,176.32,176.29,5.28384953]
[1748039899971,6.50698483,176.34,176.29,5.28384953]
[1748039900260,5.6703,176.33,176.29,10.95504953]
[1748039900465,121.22222738,176.35,176.29,5.28384953]
[1748039901467,6.50698483,176.34,176.29,5.28384953]
[1748039901666,5.671,176.31,176.29,5.28384953]
[1748039902059,6.50698483,176.34,176.26,5.6722]
[1748039902259,0.04339612,176.32,176.25,121.18]
[1748039902767,5.671,176.31,176.27,5.6718]
[1748039903465,5.71389612,176.32,176.25,121.18]
[1748039904368,5.6711,176.3,176.27,5.672]
[1748039904567,5.6711,176.3,176.25,121.18]
[1748039905163,5.6711,176.3,176.26,5.6722]
[1748039905369,0.04339612,176.32,176.25,121.18]
[1748039905869,0.04339612,176.32,176.29,5.6711]
[1748039906773,5.71409612,176.32,176.28,5.6716]
[1748039906961,0.04339612,176.32,176.28,5.6716]
[1748039907276,0.04339612,176.32,176.25,121.18]
[1748039907571,5.6713,176.3,176.26,5.6722]
[1748039907971,0.04339612,176.32,176.26,5.6722]
[1748039908171,5.6712,176.3,176.26,5.6722]
[1748039908366,0.04339612,176.32,176.27,5.6719]
[1748039908568,0.04339612,176.32,176.25,121.18]
[1748039908770,5.71399612,176.32,176.25,121.18]
[1748039908972,5.71399612,176.32,176.28,5.6716]
[1748039909169,0.04339612,176.32,176.25,121.18]
[1748039909565,0.04339612,176.32,176.25,246.18]
[1748039909878,0.04339612,176.32,176.25,121.18]
[1748039910276,0.04339612,176.32,176.27,5.6718]
[1748039910771,5.6708,176.31,176.28,5.6716]
[1748039911072,5.6708,176.31,176.25,121.18]
[1748039911474,5.6708,176.31,176.27,5.6718]
[1748039915077,5.71389612,176.32,176.25,121.18]
[1748039915382,0.04339612,176.32,176.25,121.18]
[1748039915682,5.6707,176.31,176.27,5.672]
[1748039916082,0.04339612,176.32,176.25,121.18]
[1748039916283,121.22,176.34,176.25,121.18]
[1748039916681,121.24,176.38,176.25,121.18]
[1748039916983,121.24,176.38,176.25,246.18]
[1748039916984,5.6695,176.35,176.25,246.18]
[1748039917277,0.04023912,176.32,176.31,5.6705]
[1748039917583,5.6695,176.35,176.31,5.6705]
[1748039917770,5.6698,176.34,176.31,5.6705]
[1748039917976,5.6698,176.34,176.3,5.671]
[1748039918282,5.6701,176.33,176.3,5.671]
[1748039918482,121.24,176.38,176.3,5.671]
[1748039918684,0.04313609,176.33,176.3,5.70706928]
[1748039919184,0.04313609,176.33,176.3,0.03606928]
[1748039919574,5.6707,176.31,176.3,0.03606928]
[1748039920474,551.80627114,176.31,176.16,61.53841317]
[1748039920678,6.52313557,176.17,176.16,49.26291317]
[1748039920878,127.76313557,176.17,176.16,49.26291317]
[1748039921080,121.24,176.17,176.16,49.26291317]
[1748039921283,121.24,176.17,176.03,3.8727]
[1748039921284,5.6759,176.15,176.14,5.28384953]
[1748039921586,6.52313557,176.15,176.13,0.04177132]
[1748039921776,5.6765,176.13,176.12,6.95722358]
[1748039921982,0.03764403,176.16,176.12,6.95722358]
[1748039922484,408.38,176.2,176.13,1.931]
[1748039922874,6.53025906,176.23,176.13,1.931]
[1748039923077,127.75025906,176.23,176.13,1.931]
[1748039923383,408.52,176.29,176.13,1.931]
[1748039923583,0.03921804,176.23,176.19,0.04264729]
[1748039924589,5.71251804,176.23,176.19,0.04264729]
[1748039924789,0.03921804,176.23,176.19,0.04264729]
[1748039925286,0.03921804,176.23,176.2,5.6742]
[1748039925677,0.03921804,176.23,176.19,0.04264729]
[1748039927789,5.71251804,176.23,176.19,0.04264729]
[1748039928890,0.03921804,176.23,176.19,0.04264729]
[1748039930491,0.03921804,176.23,176.2,5.674]
[1748039930792,0.03921804,176.23,176.2,1.921]
[1748039931390,408.52,176.29,176.2,1.921]
[1748039931689,529.74,176.29,176.2,1.921]
[1748039931891,5.6726,176.26,176.21,5.6739]
[1748039932087,540.36706493,176.29,176.21,5.6739]
[1748039932290,540.36706493,176.29,176.09,121.22]
[1748039932490,0.03792008,176.21,176.17,0.03609014]
[1748039932690,0.04299787,176.21,176.17,0.04207294]
[1748039932884,0.04299787,176.21,176.17,3.91687294]
[1748039933791,5.71699787,176.21,176.17,3.91687294]
[1748039935593,5.71699787,176.21,176.17,9.59207294]
[1748039936095,5.6744,176.2,176.17,3.91687294]
[1748039938495,5.6749,176.18,176.17,3.91687294]
[1748039938799,5.6747,176.19,176.17,3.91687294]
[1748039938993,0.04299787,176.21,176.17,3.91687294]
[1748039939902,5.6743,176.2,176.17,3.91687294]
[1748039940297,529.76,176.29,176.18,121.24]
[1748039940794,529.76,176.29,176.18,123.2543]
[1748039940997,5.6732,176.24,176.19,5.6743]
[1748039941192,10.62738807,176.24,176.07,408.52]
[1748039941401,0.04064344,176.17,176.14,0.0409529]
[1748039941698,131.91399773,176.17,176.09,121.24]
[1748039941999,121.27805204,176.17,176.09,121.24]
[1748039942198,5.6767,176.13,176.09,126.9177]
[1748039942399,11.3452,176.26,176.09,121.24]
[1748039942598,5.6751,176.18,176.14,5.676]
[1748039942800,5.6751,176.18,176.16,0.03794999]
[1748039943098,0.03650492,176.19,176.15,0.03988837]
[1748039943293,0.03639035,176.19,176.15,0.03988837]
[1748039943499,0.03639035,176.19,176.15,2.01848837]
[1748039944501,0.03639035,176.19,176.15,3.90668837]
[1748039945599,0.03639035,176.19,176.16,5.6755]
[1748039947205,5.71099035,176.19,176.15,11.61568837]
[1748039947405,0.03639035,176.19,176.15,5.93988837]
[1748039947902,5.6751,176.18,176.15,5.93988837]
[1748039949605,5.6751,176.18,176.15,11.61568837]
[1748039950709,0.03639035,176.19,176.15,5.93988837]
[1748039951099,0.03639035,176.19,176.16,5.6753]
[1748039951308,0.03639035,176.19,176.15,5.93988837]
[1748039951707,0.03639035,176.19,176.16,5.6752]
[1748039952098,0.03639035,176.19,176.15,5.93988837]
[1748039952902,5.71119035,176.19,176.15,11.61538837]
[1748039953109,0.03639035,176.19,176.15,5.93988837]
[1748039953507,5.675,176.18,176.15,5.93988837]
[1748039953700,0.03639035,176.19,176.15,5.93988837]
[1748039954200,0.03639035,176.19,176.15,4.05168837]
[1748039954700,5.675,176.18,176.15,9.72738837]
[1748039955812,0.03639035,176.19,176.15,0.03988837]
[1748039956508,5.6755,176.16,176.15,0.03988837]
[1748039958414,0.03639035,176.19,176.15,0.03988837]
[1748039959103,0.03639035,176.19,176.17,5.675]
[1748039962712,5.71099035,176.19,176.16,5.6754]
[1748039964610,0.03639035,176.19,176.15,0.03988837]
[1748039965199,5.6755,176.17,176.15,0.03988837]
[1748039966902,5.6755,176.16,176.15,0.03988837]
[1748039970813,5.6753,176.17,176.15,0.03988837]
[1748039971711,121.59639035,176.19,176.15,0.03988837]
[1748039972211,5.6749,176.18,176.15,0.03988837]
[1748039972513,121.59639035,176.19,176.15,5.71548837]
[1748039973510,5.71099035,176.19,176.15,5.71548837]
[1748039973811,5.71099035,176.19,176.16,5.6755]
[1748039974113,5.71099035,176.19,176.15,0.03988837]
[1748039974315,5.71099035,176.19,176.15,5.71568837]
[1748039974809,5.71099035,176.19,176.15,0.03988837]
[1748039975811,0.03639035,176.19,176.15,0.03988837]
[1748039976115,0.03639035,176.19,176.16,5.6754]
[1748039977218,0.03639035,176.19,176.15,0.03988837]
[1748039977714,0.03639035,176.19,176.17,5.675]
[1748039978011,0.03639035,176.19,176.15,2.03168837]
[1748039978320,6.52343553,176.25,176.15,2.03168837]
[1748039978321,6.90456514,176.25,176.15,109.89168837]
[1748039979212,0.03878877,176.22,176.15,109.89168837]
[1748039979715,0.03878877,176.22,176.21,5.6739]
[1748039981422,0.03878877,176.22,176.2,127.27601025]
[1748039982821,0.03878877,176.22,176.2,121.60191025]
[1748039984425,5.71228877,176.22,176.2,121.60191025]
[1748039986830,5.6739,176.21,176.2,121.60191025]
[1748039988733,5.6739,176.21,176.2,0.04191025]
[1748040005243,5.6739,176.21,176.2,1.025e-05]
[1748040005547,0.03878877,176.22,176.12,121.16]
[1748040005548,6.5622243,176.22,176.12,121.16]
[1748040005845,5.6764,176.13,176.12,121.16]
[1748040006041,6.52343553,176.19,176.12,121.16]
[1748040006348,5.6758,176.15,176.14,0.03775565]
[1748040006644,127.68343553,176.16,176.09,1.9467]
[1748040007038,5.6774,176.1,176.09,1.9467]
[1748040008140,0.04130927,176.11,176.08,0.03632144]
[1748040008141,5.6777,176.09,176.08,0.03632144]
[1748040008445,6.57391299,176.11,175.97,6.95722358]
[1748040008632,0.0848,176.15,175.99,6.53103417]
[1748040008832,408.7,176.17,176.02,6.53103417]
[1748040009144,121.18,176.15,176.05,6.53103417]
[1748040009345,0.04194935,176.1,176.09,5.6776]
[1748040009541,121.18,176.15,176.06,121.18]
[1748040010342,6.90456514,176.18,176.06,121.18]
[1748040010545,6.90456514,176.18,176.1,0.03907857]
[1748040010546,0.03672804,176.14,176.1,0.03907857]
[1748040011345,0.03672804,176.14,176.1,2.04117857]
[1748040011647,0.03672804,176.14,176.13,5.6764]
[1748040011845,121.2,176.19,176.1,2.04117857]
[1748040012044,121.2,176.19,176.1,123.24117857]
[1748040012249,5.6749,176.18,176.14,5.6759]
[1748040012849,5.6752,176.17,176.14,0.04158759]
[1748040013049,0.04328766,176.18,176.14,0.04158759]
[1748040013550,5.6755,176.16,176.14,0.04158759]
[1748040013954,0.04328766,176.18,176.14,0.04158759]
[1748040014353,5.6754,176.17,176.14,0.04158759]
[1748040014951,5.6755,176.16,176.14,0.04158759]
[1748040016051,5.71838766,176.18,176.14,0.04158759]
[1748040016454,0.04328766,176.18,176.14,121.12158759]
[1748040016651,6.90456514,176.23,176.15,2.0024]
[1748040017454,121.08,176.27,176.15,2.0024]
[1748040017654,0.04233029,176.22,176.19,0.04315759]
[1748040017954,5.71593029,176.22,176.19,0.04315759]
[1748040018154,0.04233029,176.22,176.19,0.04315759]
[1748040019156,5.6741,176.21,176.19,0.04315759]
[1748040019456,0.04233029,176.22,176.19,0.04315759]
[1748040020456,5.6742,176.2,176.19,0.04315759]
[1748040021147,5.6742,176.2,176.09,121.06]
[1748040021148,6.52614618,176.2,176.09,121.06]
[1748040021356,121.06,176.19,176.09,121.06]
[1748040021755,5.6751,176.17,176.13,5.6762]
[1748040022057,5.718581,176.17,176.13,0.04247443]
[1748040022255,5.6755,176.16,176.13,0.04247443]
[1748040023057,5.718681,176.17,176.13,0.04247443]
[1748040024554,5.718681,176.17,176.13,5.71877443]
[1748040027257,5.6755,176.16,176.13,0.04247443]
[1748040027857,5.718681,176.17,176.13,5.71877443]
[1748040028154,0.043481,176.17,176.13,0.04247443]
[1748040028457,5.6755,176.16,176.13,0.04247443]
[1748040029356,5.6755,176.16,176.13,5.71877443]
[1748040029553,5.718681,176.17,176.13,5.71877443]
[1748040030457,5.718681,176.17,176.14,5.676]
[1748040030847,0.043481,176.17,176.13,0.04247443]
[1748040031053,6.90456514,176.22,176.13,121.12247443]
[1748040031250,6.90456514,176.22,176.14,2.042]
[1748040031550,6.90456514,176.22,176.15,107.86]
[1748040032051,6.90456514,176.22,176.2,5.6741]
[1748040032657,0.03755227,176.23,176.21,5.6739]
[1748040032959,0.03755227,176.23,176.18,1.9376]
[1748040033362,0.03755227,176.23,176.21,5.6737]
[1748040033861,0.03755227,176.23,176.18,1.9376]
[1748040035264,0.03755227,176.23,176.22,5.6735]
[1748040035454,5.6723,176.26,176.22,5.6735]
[1748040035651,5.6723,176.26,176.21,0.04008148]
[1748040036466,0.04196925,176.25,176.21,0.04008148]
[1748040037564,0.04196925,176.25,176.21,121.08008148]
[1748040037763,0.04196925,176.25,176.23,5.6731]
[1748040038068,0.04196925,176.25,176.22,2.0228]
[1748040038465,5.71476925,176.25,176.22,2.0228]
[1748040039768,5.673,176.24,176.22,2.0228]
[1748040040164,0.04196925,176.25,176.22,2.0228]
[1748040041569,5.71466925,176.25,176.22,7.6962]
[1748040041866,0.04196925,176.25,176.21,0.04008148]
[1748040042057,5.6735,176.22,176.21,0.04008148]
[1748040044768,126.56,176.22,176.06,6.95722358]
[1748040044964,6.53053974,176.16,176.06,6.95722358]
[1748040045166,6.5348485,176.1,176.06,6.95722358]
[1748040045364,0.2057,176.15,176.06,6.95722358]
[1748040045568,6.5348485,176.13,176.06,6.95722358]
[1748040045867,5.6774,176.1,176.08,0.03894286]
[1748040046072,0.03695215,176.11,176.08,0.03894286]
[1748040047470,0.03695215,176.11,176.09,5.6775]
[1748040048471,0.03695215,176.11,176.1,5.6774]
[1748040050568,0.03695215,176.11,176.08,0.03894286]
[1748040051567,0.03695215,176.11,176.09,5.6775]
[1748040051768,0.03695215,176.11,176.08,0.03894286]
[1748040052573,0.03695215,176.11,176.08,5.71694286]
[1748040053073,0.03695215,176.11,176.08,0.03894286]
[1748040053275,0.03695215,176.11,176.1,5.6774]
[1748040054174,0.03695215,176.11,176.09,5.6776]
[1748040054773,0.03695215,176.11,176.08,0.03894286]
[1748040055068,6.535696,176.09,175.94,5.7198]
[1748040055273,5.678,176.09,176.01,5.6802]
[1748040055473,120.94,176.13,176.02,120.94]
[1748040055674,120.94,176.13,176.03,124.7021]
[1748040055877,5.6783,176.08,176.06,0.04051906]
[1748040056283,0.03814557,176.1,176.06,0.04051906]
[1748040056783,5.6784,176.07,176.06,0.04051906]
[1748040057283,120.94,176.08,175.99,5.6809]
[1748040057482,120.94,176.08,175.96,124.8853]
[1748040058084,120.94,176.08,175.96,131.42088926]
[1748040058286,0.04078708,176.04,176.0,5.72303242]
[1748040058586,0.04078708,176.04,176.0,0.04273242]
[1748040059288,0.04078708,176.04,176.01,5.68]
[1748040059694,0.04078708,176.04,176.0,0.04273242]
[1748040059990,0.04078708,176.04,176.02,5.6797]
[1748040060292,0.04078708,176.04,176.0,121.00273242]
[1748040060486,0.04078708,176.04,176.03,5.6797]
[1748040060785,120.96,176.11,176.0,121.00273242]
[1748040060991,120.96,176.11,176.0,120.96]
[1748040061189,126.6373,176.11,176.06,5.6785]
[1748040061692,0.0359792,176.1,176.07,0.03851082]
[1748040062085,5.7133792,176.1,176.07,0.03851082]
[1748040062289,0.0359792,176.1,176.07,0.03851082]
[1748040062496,6.90456514,176.15,176.07,0.03851082]
[1748040062687,12.58056514,176.15,176.11,5.6769]
[1748040063188,5.676,176.15,176.11,5.6769]
[1748040063390,5.676,176.15,176.11,5.71792683]
[1748040063589,0.0357683,176.15,176.12,5.6767]
[1748040063796,0.0357683,176.15,176.11,0.04102683]
[1748040063989,0.0357683,176.15,176.12,5.6765]
[1748040064292,0.0357683,176.15,176.11,0.04102683]
[1748040065187,5.6768,176.12,176.11,0.04102683]
[1748040077905,120.96,176.13,176.05,122.8817]
[1748040078103,10.38865819,176.22,176.07,6.53062902]
[1748040078399,12.57936514,176.19,176.11,5.6768]
[1748040078599,13.43519416,176.19,176.08,228.84]
[1748040078802,6.90456514,176.19,176.08,228.84]
[1748040079003,0.04171399,176.15,176.14,5.6761]
[1748040079307,0.04171399,176.15,176.12,0.04003591]
[1748040080105,0.04171399,176.15,176.14,5.6761]
[1748040085712,0.04171399,176.15,176.14,113.5561]
[1748040091616,0.04171399,176.15,176.14,5.6761]
[1748040091818,120.92,176.21,176.2,5.6742]
[1748040099018,0.04151177,176.22,176.21,5.6739]
[1748040104431,0.04151177,176.22,176.19,0.03666291]
[1748040104630,6.5250052,176.2,176.16,107.84]
[1748040104827,12.1995052,176.2,176.16,107.84]
[1748040105027,6.5250052,176.2,176.16,107.84]
[1748040105534,6.56162338,176.2,176.16,107.88228179]
[1748040108238,6.56162338,176.2,176.16,0.04228179]
[1748040108429,5.6751,176.17,176.16,0.04228179]
[1748040117645,5.6747,176.19,176.16,5.71778179]
[1748040118748,5.71081818,176.2,176.16,0.04228179]
[1748040119142,5.71081818,176.2,176.16,5.71748179]
[1748040119947,0.03661818,176.2,176.18,5.6747]
[1748040120957,0.03661818,176.2,176.19,5.6745]
[1748040121255,0.03661818,176.2,176.16,0.04228179]
[1748040121447,0.03661818,176.2,176.17,5.6751]
[1748040121856,0.03661818,176.2,176.17,113.5351]
[1748040122153,0.03661818,176.2,176.17,107.86]
[1748040122454,0.03661818,176.2,176.17,113.5351]
[1748040122952,0.03661818,176.2,176.18,5.6748]
[1748040123353,0.03661818,176.2,176.17,107.86]
[1748040123859,0.03661818,176.2,176.18,5.6748]
[1748040124154,0.03661818,176.2,176.17,107.86]
[1748040125053,0.03661818,176.2,176.17,113.5351]
[1748040125856,0.03661818,176.2,176.17,5.6751]
[1748040126057,0.03661818,176.2,176.17,113.5351]
[1748040126553,0.03661818,176.2,176.16,0.04228179]
[1748040127158,5.6751,176.17,176.16,0.04228179]
[1748040128260,5.6751,176.17,176.11,5.7374]
[1748040128261,5.6765,176.13,176.09,113.13047797]
[1748040128557,6.5250052,176.18,176.09,113.13047797]
[1748040128746,6.5250052,176.18,176.09,113.5375]
[1748040129158,6.5250052,176.18,176.09,107.86]
[1748040129352,0.04163449,176.15,176.12,0.04236098]
[1748040129958,5.6761,176.14,176.12,0.04236098]
[1748040130159,0.04163449,176.15,176.12,0.04236098]
[1748040130658,5.71773449,176.15,176.12,5.71906098]
[1748040131051,0.04163449,176.15,176.12,0.04236098]
[1748040132662,5.6764,176.13,176.12,0.04236098]
[1748040137558,126.58,176.13,176.01,5.27047797]
[1748040137763,6.53336944,176.11,176.01,5.27047797]
[1748040138558,0.0364765,176.08,176.01,5.27047797]
[1748040138770,5.6786,176.07,176.03,5.6796]
[1748040138967,0.0364765,176.08,176.02,107.88]
[1748040139362,0.0364765,176.08,176.02,113.5598]
[1748040139556,0.0364765,176.08,176.02,107.88]
[1748040140069,6.53773671,176.05,176.01,5.27047797]
[1748040140272,6.53773671,176.02,175.96,10.41576955]
[1748040140560,120.94283811,176.02,175.94,12.63972358]
[1748040140863,0.04283811,176.02,175.94,6.95722358]
[1748040141567,0.04283811,176.02,175.98,5.681]
[1748040141858,0.04283811,176.02,175.94,6.95722358]
[1748040142059,0.04283811,176.02,175.99,5.6808]
[1748040142266,0.04283811,176.02,175.86,1.97245043]
[1748040142267,865.92,176.01,175.86,1.97245043]
[1748040142462,0.03784295,175.95,175.86,1.97245043]
[1748040142662,0.03784295,175.95,175.86,129.33245043]
[1748040142963,9.04437088,176.05,175.88,6.53797088]
[1748040143262,6.53797088,176.02,175.86,135.87042131]
[1748040143663,5.22107717,176.02,175.89,6.53797088]
[1748040143863,5.22107717,176.02,175.92,6.53797088]
[1748040144064,0.0421499,175.99,175.95,0.04141756]
[1748040144257,5.22107717,176.02,175.95,0.04141756]
[1748040145357,0.03944797,176.0,175.95,0.04141756]
[1748040145567,5.22107717,176.02,175.95,0.04141756]
[1748040145766,5.22107717,176.02,176.0,5.6803]
[1748040146069,6.90456514,176.06,176.01,235.32]
[1748040146367,6.90456514,176.06,176.02,235.32]
[1748040146561,6.94792499,176.06,176.05,5.679]
[1748040147154,10.38865819,176.1,176.03,1.9808]
[1748040147769,127.38,176.14,176.03,1.9808]
[1748040147968,5.6771,176.11,176.05,5.6789]
[1748040148259,0.04113378,176.1,176.06,0.03693685]
[1748040148465,0.04113378,176.1,176.06,127.41693685]
[1748040150167,542.91002486,176.19,176.06,127.41693685]
[1748040150371,133.91002486,176.19,176.06,127.38]
[1748040151468,0.04369508,176.14,176.1,0.03645074]
[1748040151768,0.04369508,176.14,176.11,127.38]
[1748040153667,0.04369508,176.14,176.1,0.03645074]
[1748040153970,5.677,176.12,176.1,0.03645074]
[1748040154166,0.04369508,176.14,176.1,0.03645074]
[1748040154772,5.6767,176.13,176.1,0.03645074]
[1748040155369,5.71979508,176.14,176.1,0.03645074]
[1748040156472,5.6765,176.13,176.1,0.03645074]
[1748040157072,5.71989508,176.14,176.1,0.03645074]
[1748040158675,5.6764,176.13,176.1,0.03645074]
[1748040160578,0.04369508,176.14,176.1,0.03645074]
[1748040161372,0.04369508,176.14,176.11,5.6768]
[1748040161571,0.04369508,176.14,176.11,7.6179]
[1748040161880,0.04369508,176.14,176.11,1.9411]
[1748040162179,0.04369508,176.14,176.12,235.24]
[1748040163079,5.72009508,176.14,176.12,235.24]
[1748040163379,0.04369508,176.14,176.1,0.03645074]
[1748040163584,5.6771,176.12,176.1,0.03645074]
[1748040163880,0.04369508,176.14,176.1,0.03645074]
[1748040164380,5.71989508,176.14,176.1,5.71365074]
[1748040164977,0.04369508,176.14,176.1,0.03645074]
[1748040166382,5.6767,176.13,176.1,0.03645074]
[1748040167682,6.5756805,176.14,176.02,127.34]
[1748040167884,6.53198542,176.14,176.02,129.3601]